lending/lending_fUSD_20260312
["ID","MTS","AMOUNT","RATE_DAILY","PERIOD"]
[408272755,1773339040703,-1077.11010336,0.0001789,2]
[408272756,1773339040713,-5708.39256945,0.000179,2]
[408272757,1773339040722,-2500.0,0.00017917,2]
[408272758,1773339040731,-503.02080856,0.00017917,2]
[408272759,1773339040740,-2500.0,0.00017917,2]
[408272760,1773339040750,-500.0,0.00017918,2]
[408272761,1773339040760,-500.0,0.00017947,2]
[408272762,1773339040772,-500.0,0.00017972,2]
[408272763,1773339040782,-166.01,0.00017992,2]
[408272764,1773339040790,-354.90199074,0.00018027,2]
[408272765,1773339040799,-310.60221638,0.00018068,2]
[408272766,1773339040822,-1189.39778362,0.00018068,2]
[408272767,1773339040831,-534.01,0.00018132,2]
[408272768,1773339040842,-677.47,0.00018406,2]
[408272769,1773339040852,-200.0,0.00018434,2]
[408272770,1773339040863,-1775.69,0.00018443,2]
[408272771,1773339040876,-1152.00387375,0.00018465,2]
[408272772,1773339040886,-1915.57056961,0.00018465,2]
[408272773,1773339040895,-2000.0,0.00018616,2]
[408272774,1773339040904,-2351.0,0.00018799,2]
[408272775,1773339040914,-1600.0,0.00018904,2]
[408272776,1773339040924,-160.0,0.00018933,2]
[408272777,1773339040934,-200.0,0.00018982,2]
[408272778,1773339040943,-166.01,0.00018991,2]
[408272779,1773339040953,-1000.0,0.00019164,2]
[408272780,1773339040962,-272.874925,0.00019168,2]
[408272781,1773339040971,-250.0,0.00019385,2]
[408272782,1773339040982,-507.0,0.0001952,4]
[408272783,1773339040992,-150.0,0.0001956,5]
[408272784,1773339041003,-275.93335682,0.0001956,5]
[408272785,1773339041013,-499.99,0.000196,2]
[408272786,1773339041022,-279.05,0.000196,2]
[408272787,1773339041033,-777.0,0.000196,5]
[408272788,1773339041042,-526.85698105,0.000197,2]
[408272789,1773339041052,-1252.43,0.00019797,2]
[408272790,1773339041062,-150.0,0.000198,30]
[408272791,1773339041072,-1885.90099015,0.000198,7]
[408272792,1773339041086,-272.926631,0.000198,7]
[408272805,1773339045843,-215.24219,0.00016945,2]
[408272806,1773339045852,-500.0,0.000171,2]
[408272807,1773339045862,-8641.17237885,0.000198,7]
[408272808,1773339045873,-185.52212689,0.00019891,2]
[408272809,1773339045882,-14400.0,0.000199,7]
[408272810,1773339045891,-11636.20992525,0.000199,2]
[408272811,1773339045900,-395.85599492,0.000199,2]
[408272812,1773339045910,-411.64,0.00019902,2]
[408272813,1773339045919,-500.0,0.00019961,2]
[408272814,1773339045929,-500.0,0.00019961,2]
[408272815,1773339045938,-500.0,0.00019961,2]
[408272816,1773339045948,-500.0,0.00019961,2]
[408272817,1773339045959,-500.0,0.00019961,2]
[408272818,1773339045969,-500.0,0.00019961,2]
[408272819,1773339045978,-84166.9700275,0.00019962,2]
[408272820,1773339045988,-1277.7843974,0.00019962,2]
[408272821,1773339045998,-9000.0,0.00019962,2]
[408272822,1773339046007,-252.67365585,0.00019962,2]
[408272823,1773339046015,-7162.65166433,0.00019962,2]
[408272824,1773339046024,-500.0,0.00019962,2]
[408272825,1773339046034,-500.0,0.00019962,2]
[408272826,1773339046043,-500.0,0.00019962,2]
[408272827,1773339046052,-250.0,0.00019962,2]
[408272829,1773339046061,-500.0,0.00019962,2]
[408272831,1773339046071,-8322.86407987,0.00019962,2]
[408272833,1773339046080,-250.0,0.00019962,2]
[408272834,1773339046089,-500.0,0.00019962,2]
[408272835,1773339046099,-250.0,0.00019962,2]
[408272837,1773339046108,-500.0,0.00019962,2]
[408272838,1773339046117,-500.0,0.00019962,2]
[408272839,1773339046126,-250.0,0.00019962,2]
[408272840,1773339046135,-500.0,0.00019962,2]
[408272841,1773339046144,-500.0,0.00019962,2]
[408272843,1773339046153,-250.0,0.00019962,2]
[408272845,1773339046162,-500.0,0.00019962,2]
[408272846,1773339046171,-500.0,0.00019962,2]
[408272847,1773339046181,-250.0,0.00019962,2]
[408272848,1773339046191,-500.0,0.00019962,2]
[408272849,1773339046200,-500.0,0.00019962,2]
[408272850,1773339046209,-500.0,0.00019962,2]
[408272851,1773339046218,-1500.0,0.00019962,2]
[408272852,1773339046227,-250.0,0.00019962,2]
[408272853,1773339046237,-250.0,0.00019962,2]
[408272854,1773339046247,-500.0,0.00019962,2]
[408272855,1773339046257,-1500.0,0.00019962,2]
[408272856,1773339046266,-250.0,0.00019962,2]
[408272857,1773339046276,-250.0,0.00019962,2]
[408272858,1773339046286,-500.0,0.00019962,2]
[408272859,1773339046295,-1500.0,0.00019962,2]
[408272860,1773339046304,-500.0,0.00019962,2]
[408272861,1773339046313,-250.0,0.00019962,2]
[408272862,1773339046321,-250.0,0.00019962,2]
[408272863,1773339046330,-500.0,0.00019962,2]
[408272864,1773339046339,-1500.0,0.00019962,2]
[408272865,1773339046348,-250.0,0.00019962,2]
[408272866,1773339046357,-250.0,0.00019962,2]
[408272867,1773339046367,-500.0,0.00019962,2]
[408272868,1773339046376,-1500.0,0.00019962,2]
[408272869,1773339046385,-250.0,0.00019962,2]
[408272870,1773339046394,-250.0,0.00019962,2]
[408272871,1773339046403,-500.0,0.00019962,2]
[408272872,1773339046412,-1500.0,0.00019962,2]
[408272873,1773339046421,-250.0,0.00019962,2]
[408272874,1773339046430,-500.0,0.00019962,2]
[408272875,1773339046439,-1500.0,0.00019962,2]
[408272876,1773339046449,-250.0,0.00019962,2]
[408272877,1773339046458,-500.0,0.00019962,2]
[408272878,1773339046467,-1500.0,0.00019962,2]
[408272879,1773339046476,-250.0,0.00019962,2]
[408272880,1773339046485,-500.0,0.00019962,2]
[408272881,1773339046494,-1500.0,0.00019962,2]
[408272882,1773339046504,-250.0,0.00019962,2]
[408272883,1773339046512,-500.0,0.00019962,2]
[408272884,1773339046523,-1500.0,0.00019962,2]
[408272885,1773339046532,-250.0,0.00019962,2]
[408272886,1773339046541,-174.83443591,0.00019962,2]
[408272887,1773339046553,-325.16556409,0.00019962,2]
[408272888,1773339046562,-1500.0,0.00019962,2]
[408272889,1773339046572,-250.0,0.00019962,2]
[408272890,1773339046581,-500.0,0.00019962,2]
[408272891,1773339046590,-500.0,0.00019962,2]
[408272892,1773339046599,-578.20924308,0.00019962,2]
[408272893,1773339046608,-174.61919141,0.00019962,2]
[408272894,1773339046617,-200.0,0.00019962,2]
[408272895,1773339046626,-151.0,0.00019962,2]
[408272896,1773339046635,-156.587,0.00019962,2]
[408272897,1773339046644,-151.0,0.00019962,2]
[408272898,1773339046654,-193.63575869,0.00019962,2]
[408272899,1773339046663,-500.0,0.00019962,2]
[408272900,1773339046672,-500.0,0.00019962,2]
[408272901,1773339046681,-500.0,0.00019962,2]
[408272902,1773339046690,-500.0,0.00019962,2]
[408272903,1773339046699,-500.0,0.00019962,2]
[408272904,1773339046708,-500.0,0.00019962,2]
[408272905,1773339046717,-500.0,0.00019962,2]
[408272906,1773339046726,-500.0,0.00019962,2]
[408272907,1773339046735,-500.0,0.00019962,2]
[408272908,1773339046744,-500.0,0.00019962,2]
[408272909,1773339046754,-500.0,0.00019962,2]
[408272910,1773339046764,-194.42908711,0.00019973,2]
[408272911,1773339046774,-500.0,0.00019973,2]
[408272912,1773339046783,-328.47473321,0.00019973,2]
[408272913,1773339046793,-203.74,0.0001998,2]
[408272914,1773339046954,-100099.95185733,0.0001998,2]
[408272915,1773339046967,-7224.01570143,0.0001998,2]
[408272917,1773339378260,1230.89,9.06e-05,2]
[408272918,1773339378489,1230.89,9.537e-05,2]
[408272919,1773339378750,1230.89,0.00010014,2]
[408272920,1773339378961,1230.89,0.00010491,2]
[408272921,1773339379204,1230.89,0.00010968,2]
[408272922,1773339379416,1230.89,0.00011445,2]
[408272923,1773339379655,1230.89,0.00011921,2]
[408272924,1773339379870,1230.89,0.00012398,2]
[408272925,1773339380087,152.89,0.00012875,2]
[408272926,1773339380112,1078.0,0.00012875,2]
[408272927,1773339380303,1230.89,0.00013352,2]
[408272928,1773339380541,1230.89,0.00013829,2]
[408272929,1773339380780,1230.89,0.00014306,2]
[408272930,1773339439912,-1230.89,0.00014782,2]
[408272931,1773339439939,-1230.89,0.00015259,2]
[408272932,1773339439962,-745.22,0.00015557,2]
[408272940,1773339934771,1923.51,0.00012886,2]
[408272943,1773340192131,968.02,0.000134,2]
[408272950,1773340231757,-0.52500075,0.00015,2]
[408272951,1773340231780,-249.47499925,0.00015,2]
[408272952,1773340231791,-274.0,0.00015,2]
[408272953,1773340231800,-500.0,0.00015,30]
[408272954,1773340231810,-500.0,0.00015,30]
[408272955,1773340231819,-200.532957,0.00015354,7]
[408272956,1773340231830,-322.72802277,0.00015473,2]
[408272957,1773340231890,-1439.54712597,0.00015473,2]
[408272958,1773340231900,-1200.0,0.00015548,2]
[408272959,1773340231910,-300.0,0.00015548,2]
[408272960,1773340231919,-200.0,0.00015549,2]
[408272961,1773340231929,-151.0,0.00015549,2]
[408272962,1773340231938,-151.0,0.00015549,2]
[408272963,1773340231947,-151.0,0.00015549,2]
[408272964,1773340231956,-151.0,0.00015549,2]
[408272965,1773340231966,-151.0,0.00015549,2]
[408272966,1773340231975,-151.0,0.00015549,2]
[408272967,1773340231984,-151.0,0.00015549,2]
[408272968,1773340231993,-151.0,0.00015549,2]
[408272969,1773340232002,-151.0,0.00015549,2]
[408272970,1773340232011,-151.0,0.00015549,2]
[408272971,1773340232024,-151.0,0.00015549,2]
[408272972,1773340232033,-151.0,0.00015549,2]
[408272973,1773340232043,-151.0,0.00015549,2]
[408272974,1773340232051,-151.0,0.00015549,2]
[408272975,1773340232061,-151.0,0.00015549,2]
[408272976,1773340232070,-151.0,0.00015549,2]
[408272977,1773340232080,-151.0,0.00015549,2]
[408272978,1773340232092,-151.0,0.00015549,2]
[408272979,1773340232101,-151.0,0.00015549,2]
[408272980,1773340232110,-151.0,0.00015549,2]
[408272981,1773340232119,-151.0,0.00015549,2]
[408272982,1773340232128,-151.0,0.00015549,2]
[408272983,1773340232137,-151.0,0.00015549,2]
[408272984,1773340232146,-151.0,0.00015549,2]
[408272985,1773340232155,-151.0,0.00015549,2]
[408272986,1773340232164,-151.0,0.00015549,2]
[408272987,1773340232173,-154.22309039,0.00015549,2]
[408272988,1773340232184,-500.0,0.00015573,2]
[408272989,1773340232194,-2000.0,0.0001565,2]
[408272990,1773340232203,-20766.09604956,0.0001571,2]
[408272991,1773340232212,-1230.89,0.00015736,2]
[408272992,1773340232223,-1340.89412709,0.00015811,2]
[408272993,1773340232232,-1809.12,0.00015811,2]
[408272994,1773340232241,-297.0,0.00016038,2]
[408272995,1773340232255,-205.0,0.00016048,2]
[408272996,1773340232264,-150.0,0.0001605,2]
[408272997,1773340232273,-1624.0,0.00016067,2]
[408272998,1773340232282,-200.0,0.0001609,2]
[408272999,1773340232291,-200.0,0.00016097,2]
[408273000,1773340232299,-9999.99,0.00016116,2]
[408273001,1773340232309,-2456.46,0.00016162,2]
[408273002,1773340232318,-1722.0,0.00016187,2]
[408273004,1773340232329,-1230.89,0.00016213,2]
[408273005,1773340232338,-2500.0,0.00016494,2]
[408273007,1773340232347,-200.0,0.000165,2]
[408273009,1773340232356,-251.43601383,0.000165,2]
[408273011,1773340232366,-250.0,0.000165,2]
[408273012,1773340232376,-754.6,0.000165,2]
[408273013,1773340232385,-195.0,0.000165,2]
[408273014,1773340232394,-195.0,0.000165,2]
[408273015,1773340232403,-195.0,0.000165,2]
[408273016,1773340232412,-195.0,0.000165,2]
[408273017,1773340232421,-195.0,0.000165,2]
[408273018,1773340232430,-2500.0,0.000165,2]
[408273019,1773340232440,-2500.0,0.000165,2]
[408273020,1773340232449,-2500.0,0.000165,2]
[408273021,1773340232458,-2500.0,0.000165,2]
[408273022,1773340232470,-2500.0,0.000165,2]
[408273023,1773340232479,-2456.46,0.00016566,2]
[408273024,1773340232488,-500.0,0.00016573,2]
[408273025,1773340232497,-500.0,0.00016591,2]
[408273026,1773340232506,-500.0,0.00016591,2]
[408273027,1773340232515,-500.0,0.00016591,2]
[408273028,1773340232524,-500.0,0.00016591,2]
[408273029,1773340232533,-500.0,0.00016591,2]
[408273030,1773340232542,-342.18181355,0.00016591,2]
[408273031,1773340232551,-500.0,0.00016591,2]
[408273032,1773340232560,-500.0,0.00016591,2]
[408273033,1773340232569,-500.0,0.00016591,2]
[408273034,1773340232579,-500.0,0.00016591,2]
[408273035,1773340232588,-500.0,0.00016591,2]
[408273036,1773340232598,-500.0,0.00016591,2]
[408273037,1773340232607,-500.0,0.00016591,2]
[408273038,1773340232616,-500.0,0.00016591,2]
[408273039,1773340232626,-500.0,0.00016591,2]
[408273040,1773340232635,-500.0,0.00016591,2]
[408273041,1773340232645,-500.0,0.00016591,2]
[408273042,1773340232654,-500.0,0.00016591,2]
[408273043,1773340232663,-500.0,0.00016591,2]
[408273044,1773340232672,-500.0,0.00016591,2]
[408273045,1773340232681,-500.0,0.00016591,2]
[408273046,1773340232690,-500.0,0.00016591,2]
[408273047,1773340232699,-500.0,0.00016591,2]
[408273048,1773340232709,-500.0,0.00016591,2]
[408273049,1773340232718,-500.0,0.00016591,2]
[408273050,1773340232727,-500.0,0.00016591,2]
[408273051,1773340232736,-500.0,0.00016591,2]
[408273052,1773340232746,-500.0,0.00016591,2]
[408273053,1773340232755,-500.0,0.00016591,2]
[408273054,1773340232764,-500.0,0.00016591,2]
[408273055,1773340232773,-500.0,0.00016591,2]
[408273056,1773340232782,-500.0,0.00016591,2]
[408273057,1773340232791,-500.0,0.00016591,2]
[408273058,1773340232801,-500.0,0.00016591,2]
[408273059,1773340232810,-500.0,0.00016591,2]
[408273060,1773340232820,-500.0,0.00016591,2]
[408273061,1773340232830,-250.0,0.00016591,2]
[408273062,1773340232839,-32942.6924,0.00016594,2]
[408273063,1773340232849,-1000.0,0.00016594,2]
[408273064,1773340232858,-200.0,0.00016645,2]
[408273065,1773340232870,-510.0,0.00016667,2]
[408273066,1773340232879,-1230.89,0.0001669,2]
[408273067,1773340232888,-754.6,0.00016774,2]
[408273068,1773340232898,-500.0,0.00016799,2]
[408273069,1773340232907,-232.11892221,0.00016827,2]
[408273070,1773340232916,-500.0,0.00016843,2]
[408273071,1773340232926,-500.0,0.00016843,2]
[408273072,1773340232935,-500.0,0.00016843,2]
[408273073,1773340232944,-9999.99,0.00016922,2]
[408273074,1773340232953,-17495.4,0.00016922,2]
[408273075,1773340232962,-13682.15,0.00016922,2]
[408273076,1773340232972,-2456.46,0.0001697,2]
[408273077,1773340232981,-300.0,0.00017,2]
[408273078,1773340232990,-507.0,0.00017,2]
[408273079,1773340232999,-164.39,0.00017,2]
[408273080,1773340233008,-754.6,0.00017048,2]
[408273081,1773340233018,-1680.0,0.00017093,2]
[408273082,1773340233027,-810.60221638,0.00017121,2]
[408273083,1773340233036,-1230.89,0.00017167,2]
[408273084,1773340233046,-3870.6931881,0.00017197,2]
[408273085,1773340233054,-9000.0,0.00017242,2]
[408273086,1773340233064,-500.0,0.00017242,2]
[408273087,1773340233075,-500.0,0.00017242,2]
[408273088,1773340233084,-500.0,0.00017242,2]
[408273089,1773340233093,-250.0,0.00017242,2]
[408273090,1773340233102,-499.60893914,0.00017242,2]
[408273091,1773340233112,-250.0,0.00017242,2]
[408273092,1773340233121,-250.0,0.00017242,2]
[408273093,1773340233130,-250.0,0.00017242,2]
[408273094,1773340233139,-1500.0,0.00017242,2]
[408273095,1773340233149,-250.0,0.00017242,2]
[408273096,1773340233158,-1500.0,0.00017242,2]
[408273097,1773340233168,-250.0,0.00017242,2]
[408273098,1773340233180,-1500.0,0.00017242,2]
[408273099,1773340233189,-250.0,0.00017242,2]
[408273100,1773340233198,-250.0,0.00017242,2]
[408273101,1773340233207,-1500.0,0.00017242,2]
[408273102,1773340233216,-250.0,0.00017242,2]
[408273103,1773340233226,-500.0,0.00017242,2]
[408273104,1773340233235,-1500.0,0.00017242,2]
[408273105,1773340233244,-250.0,0.00017242,2]
[408273106,1773340233255,-250.0,0.00017242,2]
[408273107,1773340233264,-500.0,0.00017242,2]
[408273108,1773340233273,-1500.0,0.00017242,2]
[408273109,1773340233283,-250.0,0.00017242,2]
[408273110,1773340233292,-500.0,0.00017242,2]
[408273111,1773340233301,-250.0,0.00017242,2]
[408273112,1773340233311,-1500.0,0.00017242,2]
[408273113,1773340233320,-250.0,0.00017242,2]
[408273114,1773340233330,-378.50205694,0.00017242,2]
[408273115,1773340233339,-500.0,0.00017242,2]
[408273116,1773340233348,-1500.0,0.00017242,2]
[408273117,1773340233358,-250.0,0.00017242,2]
[408273118,1773340233367,-1500.0,0.00017242,2]
[408273119,1773340233376,-500.0,0.00017242,2]
[408273120,1773340233386,-250.0,0.00017242,2]
[408273121,1773340233396,-1500.0,0.00017242,2]
[408273122,1773340233405,-500.0,0.00017242,2]
[408273123,1773340233414,-250.0,0.00017242,2]
[408273124,1773340233423,-1500.0,0.00017242,2]
[408273125,1773340233433,-250.0,0.00017242,2]
[408273126,1773340233442,-500.0,0.00017242,2]
[408273127,1773340233451,-250.0,0.00017242,2]
[408273128,1773340233461,-250.0,0.00017242,2]
[408273129,1773340233470,-500.0,0.00017242,2]
[408273130,1773340233479,-250.0,0.00017242,2]
[408273131,1773340233488,-500.0,0.00017242,2]
[408273132,1773340233497,-500.0,0.00017242,2]
[408273133,1773340233507,-578.20924308,0.00017242,2]
[408273134,1773340233515,-500.0,0.00017242,2]
[408273135,1773340233525,-174.61919141,0.00017242,2]
[408273136,1773340233536,-200.0,0.00017242,2]
[408273137,1773340233545,-151.0,0.00017242,2]
[408273138,1773340233555,-500.0,0.00017242,2]
[408273139,1773340233565,-500.0,0.00017242,2]
[408273140,1773340233575,-500.0,0.00017242,2]
[408273141,1773340233584,-500.0,0.00017242,2]
[408273142,1773340233594,-500.0,0.00017242,2]
[408273143,1773340233603,-500.0,0.00017242,2]
[408273144,1773340233613,-500.0,0.00017242,2]
[408273145,1773340233622,-500.0,0.00017242,2]
[408273146,1773340233631,-500.0,0.00017242,2]
[408273147,1773340233640,-500.0,0.00017242,2]
[408273148,1773340233651,-500.0,0.00017242,2]
[408273149,1773340233662,-491.61562808,0.00017273,2]
[408273150,1773340233671,-9000.0,0.00017297,2]
[408273151,1773340233681,-500.0,0.00017297,2]
[408273152,1773340233691,-151.0,0.00017297,2]
[408273153,1773340233700,-203.49404453,0.00017317,2]
[408273154,1773340233710,-754.6,0.00017322,2]
[408273155,1773340233720,-9000.0,0.00017352,2]
[408273156,1773340233731,-500.0,0.00017352,2]
[408273157,1773340233740,-151.0,0.00017352,2]
[408273158,1773340233750,-2456.46,0.00017374,2]
[408273159,1773340233759,-1000.0,0.00017391,2]
[408273160,1773340233769,-1000.0,0.00017391,2]
[408273161,1773340233778,-1000.0,0.00017391,2]
[408273162,1773340233788,-9000.0,0.00017407,2]
[408273163,1773340233797,-500.0,0.00017407,2]
[408273164,1773340233808,-151.0,0.00017407,2]
[408273165,1773340233818,-274.89539226,0.00017458,2]
[408273166,1773340233828,-9000.0,0.00017462,2]
[408273167,1773340233839,-500.0,0.00017462,2]
[408273168,1773340233848,-151.0,0.00017462,2]
[408273169,1773340233857,-9000.0,0.00017517,2]
[408273170,1773340233867,-500.0,0.00017517,2]
[408273171,1773340233877,-151.0,0.00017517,2]
[408273172,1773340233886,-9000.0,0.00017572,2]
[408273173,1773340233896,-500.0,0.00017572,2]
[408273174,1773340233906,-151.0,0.00017572,2]
[408273175,1773340233916,-754.6,0.00017596,2]
[408273176,1773340233925,-2000.0,0.00017606,2]
[408273177,1773340233935,-9000.0,0.00017627,2]
[408273178,1773340233944,-500.0,0.00017627,2]
[408273179,1773340233954,-151.0,0.00017627,2]
[408273180,1773340233963,-1230.89,0.00017644,2]
[408273181,1773340233973,-500.0,0.00017682,2]
[408273182,1773340233982,-151.0,0.00017682,2]
[408273183,1773340233992,-500.0,0.00017727,2]
[408273184,1773340234001,-500.0,0.00017737,2]
[408273185,1773340234011,-151.0,0.00017737,2]
[408273186,1773340234020,-2456.46,0.00017778,2]
[408273187,1773340234029,-181.08010149,0.0001779,2]
[408273188,1773340234039,-500.0,0.00017792,2]
[408273189,1773340234048,-151.0,0.00017792,2]
[408273190,1773340234058,-205.26,0.000178,2]
[408273191,1773340234067,-500.0,0.00017808,2]
[408273192,1773340234078,-800.0,0.00017808,2]
[408273193,1773340234087,-946.58859513,0.00017858,2]
[408273194,1773340234103,-690.02040487,0.00017858,2]
[408273195,1773340234112,-177.916,0.00017858,2]
[408273196,1773340234121,-500.0,0.00017863,2]
[408273197,1773340234131,-754.6,0.0001787,2]
[408273198,1773340234140,-5708.39256945,0.000179,2]
[408273199,1773340234149,-500.0,0.00017918,2]
[408273200,1773340234159,-1003.02080856,0.00017939,2]
[408273201,1773340234169,-1500.0,0.00017939,2]
[408273202,1773340234184,-1500.0,0.00017939,2]
[408273203,1773340234193,-500.0,0.00017972,2]
[408273204,1773340234202,-354.90199074,0.00018027,2]
[408273205,1773340234211,-334.77,0.00018085,2]
[408273206,1773340234222,-1230.89,0.0001812,2]
[408273207,1773340234231,-754.6,0.00018144,2]
[408273208,1773340234241,-5311.468557,0.0001816,2]
[408273209,1773340234253,-4915.951443,0.0001816,2]
[408273210,1773340234263,-20766.09604951,0.00018215,2]
[408273211,1773340234272,-267.52209021,0.00018338,2]
[408273212,1773340234282,-754.63,0.00018418,2]
[408273213,1773340234291,-1500.0,0.00018487,2]
[408273214,1773340234300,-1500.0,0.00018487,2]
[408273215,1773340234310,-7094.7809555,0.00018537,2]
[408273217,1773340237994,-214.0,0.00017284,2]
[408273218,1773340238005,-827.30749209,0.00018537,2]
[408273248,1773340239879,-632.90999993,0.00018537,2]
[408273249,1773340240091,-42105.62667872,0.00018537,2]
[408273250,1773340240146,-31526.38072419,0.00018537,2]
[408273257,1773340245335,-6763.40414957,0.00018537,2]
[408273258,1773340245344,-166.57,0.00018602,2]
[408273259,1773340245354,-2351.0,0.00018791,2]
[408273260,1773340245363,-1500.0,0.00018792,2]
[408273261,1773340245372,-500.0,0.00018822,2]
[408273262,1773340245382,-534.01,0.00018872,2]
[408273264,1773340245391,-800.9737091,0.00018904,2]
[408273266,1773340245400,-350.0,0.00019,2]
[408273267,1773340245409,-534.01,0.00019146,2]
[408273269,1773340245418,-507.0,0.00019333,4]
[408273270,1773340245427,-534.01,0.0001942,2]
[408273271,1773340245436,-1800.0,0.000195,7]
[408273272,1773340245446,-2000.0,0.00019562,2]
[408273274,1773340245455,-3870.6931881,0.00019597,2]
[408273276,1773340245464,-3600.0,0.000196,7]
[408273278,1773340245473,-163.50554828,0.000197,2]
[408273279,1773340245483,-5000.0,0.000197,2]
[408273280,1773340245491,-5400.0,0.000197,7]
[408273281,1773340245502,-152.17434477,0.000197,2]
[408273282,1773340245511,-263.90399662,0.000197,2]
[408273283,1773340245520,-7757.4732835,0.000197,2]
[408273284,1773340245529,-195.92026662,0.000197,2]
[408273285,1773340245538,-157.12679055,0.0001979,2]
[408273286,1773340245547,-500.0,0.00019799,2]
[408273288,1773340245556,-500.0,0.00019799,2]
[408273290,1773340245565,-500.0,0.00019799,2]
[408273292,1773340245574,-500.0,0.00019799,2]
[408273293,1773340245583,-500.0,0.00019799,2]
[408273295,1773340245593,-500.0,0.00019799,2]
[408273296,1773340245602,-500.0,0.00019799,2]
[408273297,1773340245612,-500.0,0.00019799,2]
[408273298,1773340245621,-500.0,0.00019799,2]
[408273300,1773340245630,-500.0,0.00019799,2]
[408273301,1773340245640,-603.6,0.00019799,2]
[408273303,1773340245649,-274.90627411,0.00019799,2]
[408273304,1773340245659,-170.6038231,0.00019799,2]
[408273305,1773340245668,-1874.0,0.000198,2]
[408273306,1773340245678,-2288.4862341,0.000198,2]
[408273307,1773340245689,-4799.5887045,0.000198,2]
[408273308,1773340245701,-3546.29977,0.000198,2]
[408273309,1773340245711,-29383.21000001,0.000198,2]
[408273310,1773340245722,-2401.99999999,0.000198,2]
[408273311,1773340245889,-2168.2000006,0.000198,2]
[408273312,1773340245943,-820.65219003,0.000198,2]
[408273313,1773340246001,-2160.34682527,0.000198,2]
[408273317,1773340246149,-64908.51625264,0.000198,2]
[408273328,1773341012531,1668.91,0.000144,2]
[408273330,1773341111846,-761.0,0.00015318,2]
[408273331,1773341111867,-300.0,0.00015318,2]
[408273332,1773341111888,-1200.0,0.00015318,2]
[408273333,1773341111909,-300.0,0.00015318,2]
[408273334,1773341111929,-500.0,0.00015318,2]
[408273335,1773341111950,-327.67148501,0.00015319,2]
[408273336,1773341111969,-277.0,0.00015319,2]
[408273337,1773341111992,-500.0,0.00015319,2]
[408273338,1773341112013,-5000.0,0.00015319,2]
[408273339,1773341112033,-181.44918097,0.00015319,2]
[408273340,1773341112052,-4332.63,0.00015319,2]
[408273341,1773341112074,-5000.0,0.00015443,2]
[408273342,1773341112094,-2500.0,0.0001551,2]
[408273343,1773341112113,-300.0,0.00015553,2]
[408273344,1773341112132,-9999.99,0.00015554,2]
[408273345,1773341112151,-9999.99,0.00015554,2]
[408273346,1773341112173,-9559.23,0.00015554,2]
[408273347,1773341112192,-5358.43,0.00015554,2]
[408273348,1773341112211,-52682.62,0.00015554,2]
[408273349,1773341112231,-9999.99,0.00015554,2]
[408273350,1773341112250,-7581.13,0.00015554,2]
[408273351,1773341112269,-1666.7,0.00015555,2]
[408273352,1773341112288,-2589.83,0.00015555,2]
[408273353,1773341112307,-1309.288,0.00015572,2]
[408273354,1773341112326,-16612.87683968,0.00015573,2]